fUST/lending_fUST_20241223
["ID","MTS","AMOUNT","RATE_DAILY","PERIOD"]
[346378453,1734924648504,-151.0,0.00013972,2]
[346378454,1734924648514,-500.0,0.00013972,2]
[346378456,1734924648523,-525.561742,0.00013972,2]
[346378458,1734924648537,-525.561742,0.00013972,2]
[346378460,1734924648547,-525.561742,0.00013972,2]
[346378461,1734924648556,-525.561742,0.00013972,2]
[346378463,1734924648566,-525.561742,0.00013972,2]
[346378465,1734924648580,-525.561742,0.00013972,2]
[346378466,1734924648590,-151.0,0.00013972,2]
[346378468,1734924648600,-151.0,0.00013972,2]
[346378470,1734924648610,-500.0,0.00013972,2]
[346378471,1734924648622,-151.0,0.00013972,2]
[346378472,1734924648632,-151.0,0.00013972,2]
[346378473,1734924648798,-151.0,0.00013972,2]
[346378474,1734924648808,-500.0,0.00013972,2]
[346378475,1734924648820,-151.0,0.00013972,2]
[346378476,1734924648832,-157.785314,0.00013972,2]
[346378477,1734924648842,-500.0,0.00013972,2]
[346378478,1734924648852,-500.0,0.00013972,2]
[346378479,1734924648862,-500.0,0.00013972,2]
[346378480,1734924648872,-151.0,0.00013972,2]
[346378481,1734924648882,-151.0,0.00013972,2]
[346378482,1734924648892,-500.0,0.00013972,2]
[346378483,1734924648902,-500.0,0.00013972,2]
[346378484,1734924648912,-659.25,0.00013972,7]
[346378485,1734924648922,-225.93713334,0.00013972,2]
[346378486,1734924648931,-500.0,0.00013972,2]
[346378487,1734924648940,-500.0,0.00013972,2]
[346378488,1734924648950,-500.0,0.00013972,2]
[346378489,1734924648962,-500.0,0.00013972,2]
[346378490,1734924648971,-611.78,0.00013972,2]
[346378491,1734924648980,-500.0,0.00013972,2]
[346378492,1734924648995,-500.0,0.00013972,2]
[346378493,1734924649013,-500.0,0.00013972,2]
[346378494,1734924649022,-500.0,0.00013972,2]
[346378495,1734924649031,-500.0,0.00013972,2]
[346378496,1734924649040,-500.0,0.00013972,2]
[346378497,1734924649050,-500.0,0.00013972,2]
[346378498,1734924649059,-500.0,0.00013972,2]
[346378499,1734924649068,-500.0,0.00013972,2]
[346378500,1734924649080,-500.0,0.00013972,2]
[346378501,1734924649090,-707.63,0.00013972,2]
[346378502,1734924649099,-818.82741595,0.00013972,2]
[346378503,1734924649116,-48.91258405,0.00013972,2]
[346378504,1734924649126,-151.0,0.00013972,2]
[346378505,1734924649135,-500.0,0.00013972,2]
[346378506,1734924649144,-151.0,0.00013972,2]
[346378507,1734924649153,-215.518352,0.00013972,2]
[346378508,1734924649163,-500.0,0.00013972,2]
[346378509,1734924649173,-500.0,0.00013972,2]
[346378510,1734924649182,-500.0,0.00013972,2]
[346378511,1734924649192,-500.0,0.00013972,2]
[346378512,1734924649201,-152.410683,0.00013972,2]
[346378513,1734924649211,-500.0,0.00013972,2]
[346378514,1734924649220,-500.0,0.00013972,2]
[346378515,1734924649230,-500.0,0.00013972,2]
[346378516,1734924649240,-42.08213345,0.00013972,2]
[346378517,1734924649252,-371.86726478,0.00013972,2]
[346378518,1734924649262,-500.0,0.00013972,2]
[346378519,1734924649271,-500.0,0.00013972,2]
[346378520,1734924649281,-500.0,0.00013972,2]
[346378521,1734924649290,-500.0,0.00013972,2]
[346378522,1734924649300,-271.97330096,0.00013972,2]
[346378523,1734924649310,-610.218324,0.00013972,2]
[346378524,1734924649320,-610.218324,0.00013972,2]
[346378525,1734924649333,-610.218324,0.00013972,2]
[346378526,1734924649342,-500.0,0.00013972,2]
[346378527,1734924649352,-500.0,0.00013972,2]
[346378528,1734924649362,-610.218324,0.00013972,2]
[346378529,1734924649371,-610.218324,0.00013972,2]
[346378530,1734924649381,-610.218324,0.00013972,2]
[346378531,1734924649391,-1158.9,0.00013972,2]
[346378532,1734924649400,-500.0,0.00013972,2]
[346378533,1734924649410,-512.86748711,0.00013972,2]
[346378534,1734924649419,-500.0,0.00013972,2]
[346378535,1734924649429,-10.68200315,0.00013972,2]
[346378536,1734924649441,-256.22650434,0.00013972,2]
[346378537,1734924649451,-181.861564,0.00013972,2]
[346378538,1734924649460,-151.0,0.00013972,2]
[346378539,1734924649469,-181.861564,0.00013972,2]
[346378540,1734924649479,-151.0,0.00013972,2]
[346378541,1734924649488,-181.861564,0.00013972,2]
[346378542,1734924649497,-151.0,0.00013972,2]
[346378543,1734924649506,-500.0,0.00013972,2]
[346378544,1734924649516,-860.03,0.00013972,2]
[346378545,1734924649525,-181.861564,0.00013972,2]
[346378546,1734924649536,-500.0,0.00013972,2]
[346378547,1734924649546,-181.861564,0.00013972,2]
[346378548,1734924649555,-181.861564,0.00013972,2]
[346378549,1734924649565,-500.0,0.00013972,2]
[346378550,1734924649574,-4997.37392966,0.00013972,2]
[346378598,1734925832930,-1500.84080083,0.00011067,2]
[346378599,1734925832940,-1500.84080083,0.00011179,2]
[346378600,1734925832952,-2314.6514354,0.00011392,2]
[346378601,1734925832964,-300.0,0.00012153,2]
[346378602,1734925832974,-300.0,0.00012153,2]
[346378603,1734925832985,-3151.34633047,0.00012154,2]
[346378650,1734925838865,-21728.65366953,0.00012154,2]
[346378652,1734925838877,-14753.5375617,0.00012589,2]
[346378654,1734925838888,-397.971,0.00012589,2]
[346378657,1734925838898,-760.463,0.0001327,2]
[346378659,1734925838908,-703.0362521,0.000133,2]
[346378660,1734925838918,-213.8284111,0.000133,2]
[346378663,1734925838928,-420.0,0.00013339,2]
[346378664,1734925838937,-153.0,0.00013352,2]
[346378667,1734925838947,-153.0,0.00013352,2]
[346378669,1734925838957,-420.0,0.00013368,2]
[346378671,1734925838967,-153.0,0.00013452,2]
[346378673,1734925838976,-500.0,0.00013698,2]
[346378675,1734925838986,-500.0,0.00013698,2]
[346378677,1734925838996,-500.0,0.00013698,2]
[346378678,1734925839005,-170.97394909,0.00013698,2]
[346378680,1734925839015,-500.0,0.00013698,2]
[346378682,1734925839027,-500.0,0.00013698,2]
[346378684,1734925839036,-151.0,0.00013698,2]
[346378686,1734925839046,-500.0,0.00013698,2]
[346378689,1734925839055,-396.65695061,0.00013698,2]
[346378691,1734925839068,-103.34304939,0.00013698,2]
[346378693,1734925839078,-396.65695061,0.00013698,2]
[346378695,1734925839089,-103.34304939,0.00013698,2]
[346378697,1734925839099,-500.0,0.00013698,2]
[346378699,1734925839109,-150.73695001,0.00013698,2]
[346378701,1734925839121,-5.49179399,0.00013698,2]
[346378703,1734925839130,-500.0,0.00013698,2]
[346378705,1734925839139,-503.32175028,0.00013698,2]
[346378707,1734925839149,-427.152827,0.00013698,2]
[346378709,1734925839158,-427.152827,0.00013698,2]
[346378711,1734925839167,-501.85447821,0.00013698,2]
[346378713,1734925839176,-152.006909,0.00013698,2]
[346378715,1734925839186,-500.0,0.00013698,2]
[346378717,1734925839195,-503.98119112,0.00013698,2]
[346378719,1734925839205,-500.0,0.00013698,2]
[346378721,1734925839215,-500.0,0.00013698,2]
[346378723,1734925839224,-500.0,0.00013698,2]
[346378725,1734925839232,-553.87147763,0.00013698,2]
[346378727,1734925839242,-560.8,0.00013698,2]
[346378729,1734925839251,-500.0,0.00013698,2]
[346378731,1734925839260,-500.0,0.00013698,2]
[346378733,1734925839269,-500.0,0.00013698,2]
[346378735,1734925839282,-500.0,0.00013698,2]
[346378737,1734925839291,-500.0,0.00013698,2]
[346378739,1734925839300,-500.0,0.00013698,2]
[346378741,1734925839309,-500.0,0.00013698,2]
[346378743,1734925839318,-500.0,0.00013698,2]
[346378745,1734925839327,-500.0,0.00013698,2]
[346378747,1734925839336,-500.0,0.00013698,2]
[346378749,1734925839345,-151.0,0.00013698,2]
[346378751,1734925839355,-500.0,0.00013698,2]
[346378753,1734925839364,-151.0,0.00013698,2]
[346378755,1734925839373,-648.66,0.00013698,2]
[346378757,1734925839382,-426.288969,0.00013698,2]
[346378759,1734925839392,-500.0,0.00013698,2]
[346378761,1734925839401,-426.288969,0.00013698,2]
[346378763,1734925839411,-795.43,0.00013698,2]
[346378765,1734925839420,-500.0,0.00013698,2]
[346378767,1734925839430,-500.0,0.00013698,2]
[346378769,1734925839440,-500.0,0.00013698,2]
[346378771,1734925839449,-500.0,0.00013698,2]
[346378773,1734925839458,-500.0,0.00013698,2]
[346378775,1734925839468,-508.97613195,0.00013698,2]
[346378777,1734925839478,-1062.32,0.00013698,2]
[346378779,1734925839488,-500.0,0.00013698,2]
[346378781,1734925839498,-500.0,0.00013698,2]
[346378783,1734925839508,-500.0,0.00013698,2]
[346378785,1734925839519,-500.0,0.00013698,2]
[346378788,1734925839538,-505.90167129,0.00013698,2]
[346378790,1734925839548,-500.0,0.00013698,2]
[346378792,1734925839558,-151.0,0.00013698,2]
[346378794,1734925839568,-151.0,0.00013698,2]
[346378796,1734925839578,-500.0,0.00013698,2]
[346378798,1734925839588,-598.79767811,0.00013698,2]
[346378800,1734925839598,-500.0,0.00013698,2]
[346378802,1734925839607,-741.89065063,0.00013698,2]
[346379662,1734927036237,-300.0,0.00012969,2]
[346379664,1734927036248,-300.0,0.000131,2]
[346379666,1734927036257,-300.0,0.000131,3]
[346379668,1734927036270,-300.0,0.000131,4]
[346379670,1734927036281,-741.61,0.0001327,2]
[346379672,1734927036291,-465.18572797,0.00013575,2]
[346379674,1734927036300,-171.82146762,0.00013597,2]
[346379676,1734927036310,-300.0,0.00013599,2]
[346379678,1734927036319,-300.0,0.00013599,2]
[346379680,1734927036334,-300.0,0.000136,3]
[346379682,1734927036344,-300.0,0.000136,2]
[346379684,1734927036354,-300.0,0.000136,2]
[346379685,1734927036363,-300.0,0.000136,2]
[346379686,1734927036372,-300.0,0.000136,4]
[346379688,1734927036381,-300.0,0.000136,4]
[346379690,1734927036391,-300.0,0.000136,3]
[346379692,1734927036401,-300.0,0.000136,2]
[346379694,1734927036410,-320.0,0.000136,2]
[346379696,1734927036420,-328.9001366,0.000136,3]
[346379698,1734927036429,-10571.36585313,0.00013614,2]
[346379700,1734927036438,-171.82146759,0.0001364,2]
[346379701,1734927036447,-171.82146759,0.00013684,2]
[346379702,1734927036456,-500.0,0.00013697,2]
[346379703,1734927036466,-203.52748481,0.00013697,2]
[346379704,1734927036474,-152.47639226,0.00013697,2]
[346379705,1734927036486,-500.0,0.00013697,2]
[346379706,1734927036496,-500.0,0.00013697,2]
[346379707,1734927036505,-500.0,0.00013697,2]
[346379708,1734927036514,-147.17877643,0.00013697,2]
[346379746,1734927038934,-352.82122357,0.00013697,2]
[346379748,1734927038943,-500.0,0.00013697,2]
[346379750,1734927038952,-500.0,0.00013697,2]
[346379752,1734927038962,-500.0,0.00013697,2]
[346379754,1734927038971,-500.0,0.00013697,2]
[346379756,1734927038980,-500.0,0.00013697,2]
[346379758,1734927038989,-500.0,0.00013697,2]
[346379760,1734927038999,-500.0,0.00013697,2]
[346379762,1734927039009,-500.0,0.00013697,2]
[346379764,1734927039018,-500.0,0.00013697,2]
[346379766,1734927039030,-500.0,0.00013697,2]
[346379768,1734927039039,-500.0,0.00013697,2]
[346379770,1734927039048,-599.68356581,0.00013697,2]
[346379772,1734927039057,-500.0,0.00013697,2]
[346379774,1734927039066,-500.0,0.00013697,2]
[346379776,1734927039075,-500.0,0.00013697,2]
[346379778,1734927039084,-500.0,0.00013697,2]
[346379780,1734927039094,-500.0,0.00013697,2]
[346379782,1734927039103,-500.0,0.00013697,2]
[346379784,1734927039112,-500.0,0.00013697,2]
[346379786,1734927039122,-500.0,0.00013697,2]
[346379788,1734927039131,-500.0,0.00013697,2]
[346379790,1734927039140,-500.0,0.00013697,2]
[346379792,1734927039149,-500.0,0.00013697,2]
[346379794,1734927039158,-500.0,0.00013697,2]
[346379796,1734927039167,-500.0,0.00013697,2]
[346379798,1734927039177,-500.0,0.00013697,2]
[346379800,1734927039186,-500.0,0.00013697,2]
[346379802,1734927039195,-405.21135176,0.00013697,2]
[346379804,1734927039204,-500.0,0.00013697,2]
[346379806,1734927039213,-500.0,0.00013697,2]
[346379808,1734927039222,-500.0,0.00013697,2]
[346379810,1734927039231,-500.0,0.00013698,2]
[346379812,1734927039241,-502.51099262,0.00013698,2]
[346379814,1734927039250,-166.07138247,0.00013698,2]
[346379816,1734927039259,-500.0,0.00013698,2]
[346379817,1734927039273,-503.75969753,0.00013698,2]
[346379820,1734927039283,-502.3234434,0.00013698,2]
[346379821,1734927039293,-500.0,0.00013698,2]
[346379824,1734927039303,-152.34837257,0.00013698,2]
[346379826,1734927039312,-504.30067676,0.00013698,2]
[346379828,1734927039322,-151.0,0.00013698,2]
[346379829,1734927039331,-151.0,0.00013698,2]
[346379832,1734927039342,-151.0,0.00013698,2]
[346379834,1734927039352,-156.944609,0.00013698,2]
[346379835,1734927039361,-384.437545,0.00013698,2]
[346379837,1734927039370,-384.437545,0.00013698,2]
[346379840,1734927039380,-384.437545,0.00013698,2]
[346379842,1734927039389,-384.437545,0.00013698,2]
[346379844,1734927039398,-384.437545,0.00013698,2]
[346379846,1734927039407,-384.437545,0.00013698,2]
[346379848,1734927039417,-384.437545,0.00013698,2]
[346379850,1734927039426,-384.437545,0.00013698,2]
[346379852,1734927039437,-504.07612519,0.00013698,2]
[346379854,1734927039447,-500.0,0.00013698,2]
[346379856,1734927039456,-500.0,0.00013698,2]
[346379858,1734927039465,-517.019022,0.00013698,2]
[346379859,1734927039474,-517.019022,0.00013698,2]
[346379861,1734927039484,-517.019022,0.00013698,2]
[346379863,1734927039493,-517.019022,0.00013698,2]
[346379865,1734927039503,-517.019022,0.00013698,2]
[346379867,1734927039513,-517.019022,0.00013698,2]
[346379869,1734927039523,-500.0,0.00013698,2]
[346379871,1734927039533,-507.09358732,0.00013698,2]
[346379873,1734927039542,-500.0,0.00013698,2]
[346379875,1734927039552,-500.0,0.00013698,2]
[346379877,1734927039562,-500.0,0.00013698,2]
[346379879,1734927039571,-510.28984866,0.00013698,2]
[346379881,1734927039581,-618.31803061,0.00013698,2]
[346379884,1734927039590,-500.0,0.00013698,2]
[346379885,1734927039599,-504.52673737,0.00013698,2]
[346379887,1734927039608,-495.06679573,0.00013698,2]
[346379890,1734927039618,-151.0,0.00013698,2]
[346379891,1734927039627,-151.0,0.00013698,2]
[346379893,1734927039636,-151.0,0.00013698,2]
[346379895,1734927039645,-151.0,0.00013698,2]
[346379897,1734927039654,-151.0,0.00013698,2]
[346379899,1734927039663,-151.0,0.00013698,2]
[346379901,1734927039672,-151.0,0.00013698,2]
[346379903,1734927039682,-281.061895,0.00013698,2]
[346379905,1734927039692,-151.0,0.00013698,2]
[346379907,1734927039702,-500.0,0.00013698,2]
[346379909,1734927039711,-500.0,0.00013698,2]
[346379911,1734927039721,-500.0,0.00013698,2]
[346379913,1734927039730,-426.66363469,0.00013698,2]
[346379915,1734927039740,-500.0,0.00013698,2]
[346379917,1734927039750,-500.0,0.00013698,2]
[346379919,1734927039759,-553.95019949,0.00013698,2]
[346379921,1734927039770,-500.0,0.00013698,2]
[346379923,1734927039780,-642.47,0.00013698,2]
[346379925,1734927039790,-510.89063385,0.00013698,2]
[346379927,1734927039800,-500.0,0.00013698,2]
[346379929,1734927039810,-500.0,0.00013698,2]
[346379931,1734927039819,-510.65546127,0.00013698,2]
[346379933,1734927039828,-794.12,0.00013698,2]
[346379935,1734927039837,-500.0,0.00013698,2]
[346379937,1734927039846,-500.0,0.00013698,2]
[346379939,1734927039856,-500.0,0.00013698,2]
[346379941,1734927039865,-559.96429465,0.00013698,2]
[346379943,1734927039874,-500.0,0.00013698,2]
[346379945,1734927039883,-502.19852317,0.00013698,2]
[346379947,1734927039892,-500.0,0.00013698,2]
[346379949,1734927039901,-309.38299447,0.00013698,2]
[346379951,1734927039911,-500.0,0.00013698,2]
[346379953,1734927039921,-514.01922108,0.00013698,2]
[346379955,1734927039930,-203.545469,0.00013698,2]
[346379957,1734927039939,-203.545469,0.00013698,2]
[346379959,1734927039949,-203.545469,0.00013698,2]
[346379961,1734927039958,-203.545469,0.00013698,2]
[346379963,1734927039967,-203.545469,0.00013698,2]
[346379965,1734927039977,-538.26778031,0.00013698,2]
[346379967,1734927039986,-506.09835861,0.00013698,2]
[346379969,1734927039995,-500.0,0.00013698,2]
[346379971,1734927040004,-500.0,0.00013698,2]
[346379973,1734927040014,-500.0,0.00013698,2]
[346379975,1734927040024,-500.0,0.00013698,2]
[346379977,1734927040033,-500.0,0.00013698,2]
[346379979,1734927040043,-500.0,0.00013698,2]
[346379981,1734927040052,-500.0,0.00013698,2]
[346379983,1734927040061,-1040.46,0.00013698,2]
[346379985,1734927040070,-778.28,0.00013698,2]
[346379987,1734927040079,-500.0,0.00013698,2]
[346379989,1734927040089,-500.0,0.00013698,2]
[346379991,1734927040098,-501.64139028,0.00013698,2]
[346379993,1734927040107,-508.03,0.00013698,2]
[346379996,1734927040116,-501.89610591,0.00013698,2]
[346379999,1734927040125,-168.0,0.00013698,2]
[346380002,1734927040135,-490.06927552,0.00013698,2]
[346380005,1734927040144,-500.0,0.00013698,2]
[346380007,1734927040153,-500.0,0.00013698,2]
[346380009,1734927040162,-500.0,0.00013698,2]
[346380012,1734927040172,-503.99258486,0.00013698,2]
[346380014,1734927040181,-847.02,0.00013698,2]
[346380016,1734927040190,-501.48822211,0.00013698,2]
[346380018,1734927040199,-219.33293192,0.00013698,2]
[346380020,1734927040208,-500.0,0.00013698,2]
[346380022,1734927040217,-500.0,0.00013698,2]
[346380024,1734927040226,-502.36691704,0.00013698,2]
[346380026,1734927040235,-502.00053495,0.00013698,2]
[346380028,1734927040245,-501.31613759,0.00013698,2]
[346380030,1734927040254,-507.78364368,0.00013698,2]
[346380032,1734927040264,-461.21209318,0.00013698,2]
[346380034,1734927040277,-500.0,0.00013698,2]
[346380036,1734927040286,-500.0,0.00013698,2]
[346380038,1734927040295,-500.0,0.00013698,2]
[346380040,1734927040307,-502.87763207,0.00013698,2]
[346380042,1734927040316,-496.85498297,0.00013698,2]
[346380045,1734927040332,-7.44930178,0.00013698,2]
[346380047,1734927040341,-505.49714278,0.00013698,2]
[346380049,1734927040353,-502.32885268,0.00013698,2]
[346380051,1734927040362,-505.00623666,0.00013698,2]
[346380053,1734927040372,-502.3535609,0.00013698,2]
[346380055,1734927040381,-500.0,0.00013698,2]
[346380057,1734927040391,-505.5,0.00013698,2]
[346380059,1734927040400,-151.0,0.00013698,2]
[346380061,1734927040410,-151.0,0.00013698,2]
[346380063,1734927040419,-151.0,0.00013698,2]
[346380065,1734927040428,-151.0,0.00013698,2]
[346380067,1734927040437,-151.0,0.00013698,2]
[346380069,1734927040447,-500.0,0.00013698,2]
[346380071,1734927040456,-524.93,0.00013698,2]
[346380073,1734927040465,-500.0,0.00013698,2]
[346380075,1734927040474,-500.0,0.00013698,2]
[346380077,1734927040484,-604.32,0.00013698,7]
[346380079,1734927040493,-500.0,0.00013698,2]
[346380081,1734927040503,-500.0,0.00013698,2]
[346380083,1734927040512,-500.0,0.00013698,2]
[346380085,1734927040522,-500.0,0.00013698,2]
[346380087,1734927040531,-500.0,0.00013698,2]
[346380089,1734927040540,-500.0,0.00013698,2]
[346380091,1734927040549,-502.18806448,0.00013698,2]
[346380093,1734927040558,-500.0,0.00013698,2]
[346380095,1734927040567,-642.55,0.00013698,2]
[346380097,1734927040576,-500.0,0.00013698,2]
[346380099,1734927040585,-669.31,0.00013698,2]
[346380101,1734927040594,-309.757391,0.00013698,2]
[346380103,1734927040603,-309.757391,0.00013698,2]
[346380105,1734927040612,-309.757391,0.00013698,2]
[346380107,1734927040621,-500.0,0.00013698,2]
[346380109,1734927040631,-309.757391,0.00013698,2]
[346380111,1734927040640,-111.98023169,0.00013698,2]
[346380412,1734927043537,-197.77715931,0.00013698,2]
[346380414,1734927043547,-309.757391,0.00013698,2]
[346380416,1734927043556,-309.757391,0.00013698,2]
[346380418,1734927043566,-309.757391,0.00013698,2]
[346380420,1734927043576,-309.757391,0.00013698,2]
[346380423,1734927043585,-309.757391,0.00013698,2]
[346380425,1734927043595,-309.757391,0.00013698,2]
[346380426,1734927043604,-309.757391,0.00013698,2]
[346380428,1734927043614,-585.81631275,0.00013698,2]
[346380430,1734927043623,-500.0,0.00013698,2]
[346380432,1734927043632,-500.0,0.00013698,2]
[346380434,1734927043642,-501.98191268,0.00013698,2]
[346380436,1734927043651,-500.0,0.00013698,2]
[346380438,1734927043661,-500.0,0.00013698,2]
[346380440,1734927043671,-504.41265722,0.00013698,2]
[346380443,1734927043680,-500.0,0.00013698,2]
[346380444,1734927043689,-500.0,0.00013698,2]
[346380446,1734927043699,-1309.52,0.00013698,2]
[346380448,1734927043708,-718.75,0.00013698,2]
[346380450,1734927043717,-504.44990867,0.00013698,2]
[346380452,1734927043726,-500.0,0.00013698,2]
[346380454,1734927043736,-1610.32,0.00013698,2]
[346380456,1734927043745,-7505.31826072,0.00013698,2]
[346380669,1734927046678,-1247.4097281,0.00013698,2]
[346380772,1734928232887,-710.662,0.00012876,2]
[346380774,1734928232897,-710.735,0.0001327,2]
[346380776,1734928232906,-300.0,0.00013521,2]
[346380778,1734928232916,-300.0,0.00013521,2]
[346380780,1734928232926,-1264.83072332,0.00013522,2]
[346380783,1734928232944,-722.59937,0.00013522,2]
[346381334,1734928243729,-1012.31315351,0.00013387,2]
[346381336,1734928243739,-987.68684649,0.00013522,2]
[346381606,1734928246728,-7596.24891332,0.00013522,2]
[346381607,1734928246738,-171.82146759,0.00013598,2]
[346381609,1734928246747,-41098.99493565,0.00013673,2]
[346381657,1734928684094,96111.0,0.0002,60]
[346381719,1734929432090,-279.1477734,0.00012927,2]
[346381721,1734929432099,-680.89,0.0001302,2]
[346381723,1734929432108,-300.0,0.00013418,2]
[346381725,1734929432117,-300.0,0.00013418,2]
[346381727,1734929432126,-10450.54316643,0.00013419,2]
[346381847,1734929438042,-120.8226867,0.00013419,2]
[346381849,1734929438054,-191979.17731314,0.00013673,2]
[346382685,1734929445946,-1830.8614383,0.00013673,2]
[346383849,1734929975002,52269.2742937,0.00022,120]
[346384181,1734930643269,-652.579,0.0001302,2]
[346384182,1734930643279,-300.0,0.00013219,2]
[346384183,1734930643291,-300.0,0.00013219,2]
[346384184,1734930643301,-10571.36585313,0.00013357,2]
[346384185,1734930643311,-171.82146759,0.00013598,2]
[346384186,1734930643321,-30785.61122045,0.00013673,2]
[346384205,1734931542051,64.96032457,0.00022,120]
[346384206,1734931542083,199935.03967543,0.00022,120]
[346384209,1734931768711,260.45,0.0001011,2]
[346384257,1734931835971,-941.8386625,0.0001261,2]
[346384259,1734931835981,-311.625264,0.0001289,2]
[346384262,1734931836155,-625.644,0.0001299,2]
[346384263,1734931836165,-1750.42561642,0.00013178,2]
[346384304,1734931838384,-776.7065474,0.00013178,2]
[346384525,1734931840377,-772.79413623,0.00013178,2]
[346384848,1734931843485,-7271.43955308,0.00013178,2]
[346384850,1734931843495,-300.0,0.00013395,2]
[346384852,1734931843505,-212.2726844,0.00013536,2]
[346384854,1734931843514,-922.59749135,0.00013598,2]
[346384856,1734931843524,-666.0,0.00013598,2]
[346384858,1734931843533,-206.65978386,0.00013672,2]
[346384860,1734931843543,-6818.1895881,0.00013673,2]
[346386510,1734932853966,1252.67593,0.00011903,2]
[346386511,1734932868885,1252.67593,0.00011903,2]
[346386512,1734932885018,1252.67593,0.00011903,2]
[346386514,1734932900623,1252.67593,0.00011903,2]
[346386521,1734932915758,1252.67593,0.00011903,2]
[346386522,1734932931270,1252.67593,0.00011903,2]
[346386523,1734932946219,1252.67593,0.00011903,2]
[346386525,1734932962433,842.43000458,0.00011903,2]
[346386526,1734932971014,1252.67593,0.00011903,2]
[346386885,1734933040608,-250.0,0.00012228,2]
[346386887,1734933040617,-250.0,0.00012351,2]
[346386889,1734933040627,-1252.67593,0.00012643,2]
[346386891,1734933040636,-599.486,0.0001299,2]
[346386893,1734933040645,-8794.8064748,0.00013198,2]
[346386895,1734933040654,-709.3686934,0.000133,2]
[346386897,1734933040664,-153.2926313,0.000133,2]
[346386899,1734933040672,-300.0,0.00013335,2]
[346386901,1734933040681,-300.0,0.00013335,2]
[346386903,1734933040691,-485.85801235,0.00013352,2]
[346386905,1734933040700,-485.85801234,0.00013426,2]
[346386907,1734933040709,-153.0,0.00013452,2]
[346386909,1734933040719,-485.85801234,0.00013499,2]
[346386911,1734933040728,-666.0,0.00013598,2]
[346386913,1734933040737,-13838.79623347,0.00013599,2]
[346387207,1734933043613,-393.86290296,0.00013599,2]
[346387505,1734933046518,258.6137,0.00022,120]
[346387545,1734933046884,774.5,0.00022,120]
[346388407,1734934144670,1511.89,0.00022,120]
[346388411,1734934194908,3190.0,0.0002,60]
[346388485,1734934232888,-600.0,0.00012267,2]
[346388487,1734934232898,-600.0,0.00012391,2]
[346388489,1734934232908,-300.0,0.00012617,2]
[346388491,1734934232917,-300.0,0.00012617,2]
[346388493,1734934232930,-7516.52995752,0.00012618,2]
[346388550,1734934238782,-600.0,0.00012144,2]
[346388552,1734934238791,-6730.85209885,0.00012618,2]
[346388555,1734934238807,-10632.61794363,0.00012618,2]
[346388557,1734934238816,-574.357,0.0001299,2]
[346388559,1734934238825,-10571.36585313,0.00013418,2]
[346388561,1734934238835,-666.0,0.00013598,2]
[346388563,1734934238844,-3000.65086357,0.00013599,2]
[346388565,1734934238854,-500.0,0.00013599,2]
[346388567,1734934238864,-500.0,0.00013599,2]
[346388568,1734934238873,-500.0,0.00013599,2]
[346388571,1734934238883,-500.0,0.00013599,2]
[346388573,1734934238892,-500.0,0.00013599,2]
[346388574,1734934238902,-500.0,0.00013599,2]
[346388577,1734934238911,-500.0,0.00013599,2]
[346388578,1734934238921,-500.0,0.00013599,2]
[346388581,1734934238933,-500.0,0.00013599,2]